bitfinex/quotes_SOLUSD_20250815
["timestamp","ask_amount","ask_price","bid_price","bid_amount"]
[1755296114545,34.17392067,185.59,185.58,0.03]
[1755296114845,39.56214201,185.59,185.58,0.03]
[1755296117851,54.66835758,185.59,185.58,0.03]
[1755296119963,39.56214201,185.59,185.58,0.03]
[1755296120164,34.17392067,185.59,185.58,0.03]
[1755296120470,39.56214201,185.59,185.58,0.03]
[1755296120843,29.68271214,185.59,185.58,0.03]
[1755296124841,39.56214201,185.59,185.58,0.03]
[1755296126329,30.34271214,185.59,185.58,0.03]
[1755296126564,34.17392067,185.59,185.58,0.03]
[1755296126772,30.34271214,185.59,185.58,0.03]
[1755296128048,29.68271214,185.59,185.58,0.03]
[1755296130765,30.34271214,185.59,185.58,0.03]
[1755296131356,34.17392067,185.59,185.58,0.03]
[1755296133170,34.177937,185.59,185.58,0.03]
[1755296134785,39.56615834,185.59,185.58,0.03]
[1755296135150,35.73494981,185.59,185.58,0.03]
[1755296135351,39.56615834,185.59,185.58,0.03]
[1755296137257,77.44615834,185.59,185.58,0.03]
[1755296137957,72.057937,185.59,185.58,0.03]
[1755296139359,29.68672847,185.59,185.58,0.03]
[1755296143275,30.34672847,185.59,185.58,0.03]
[1755296143458,34.177937,185.59,185.58,0.03]
[1755296145184,39.56615834,185.59,185.58,0.03]
[1755296145363,44.09956893,185.59,185.58,0.03]
[1755296147193,29.68672847,185.59,185.58,0.03]
[1755296149387,30.36672847,185.59,185.58,0.03]
[1755296150465,29.68672847,185.59,185.58,0.03]
[1755296151982,30.36672847,185.59,185.58,0.03]
[1755296152583,29.68672847,185.59,185.58,0.03]
[1755296154570,3.68672847,185.59,185.58,0.03]
[1755296154893,3.68672847,185.59,185.58,4.28120853]
[1755296155890,0.06,185.59,185.58,83.48120853]
[1755296156310,0.06,185.59,185.58,79.65]
[1755296156590,0.06,185.59,185.58,88.86972022]
[1755296156794,1e-08,185.59,185.58,104.51478695]
[1755296156982,1e-08,185.59,185.58,103.97593579]
[1755296157596,1e-08,185.59,185.58,91.02902222]
[1755296157796,1e-08,185.59,185.58,90.60902222]
[1755296158388,1e-08,185.59,185.58,88.44972022]
[1755296160198,1e-08,185.59,185.58,88.86972022]
[1755296160399,1e-08,185.59,185.58,84.61851169]
[1755296160578,1e-08,185.59,185.58,9.24972022]
[1755296161007,1e-08,185.59,185.58,9.66972022]
[1755296161295,1e-08,185.59,185.58,103.97593579]
[1755296162085,1e-08,185.61,185.58,103.97593579]
[1755296162287,1e-08,185.61,185.6,18.9374241]
[1755296162598,1e-08,185.61,185.6,135.9974241]
[1755296162782,1e-08,185.61,185.6,136.4174241]
[1755296162980,1e-08,185.61,185.6,138.5762611]
[1755296164106,1e-08,185.61,185.6,143.96419213]
[1755296167098,1e-08,185.61,185.6,169.96419213]
[1755296167690,1e-08,185.63,185.6,169.96419213]
[1755296167983,1e-08,185.63,185.61,0.42]
[1755296168186,1e-08,185.63,185.62,18.9374241]
[1755296168379,1e-08,185.63,185.62,98.5574241]
[1755296168772,1e-08,185.63,185.62,100.7161441]
[1755296168997,1e-08,185.63,185.62,143.9434946]
[1755296169880,1e-08,185.64,185.62,143.9434946]
[1755296170197,1e-08,185.65,185.63,45.89613012]
[1755296170406,1e-08,185.65,185.64,41.67120853]
[1755296170705,1e-08,185.65,185.64,42.09120853]
[1755296170901,1e-08,185.65,185.64,47.05797862]
[1755296171206,1e-08,185.65,185.64,62.58419419]
[1755296171879,1e-08,185.65,185.64,62.16419419]
[1755296172085,1e-08,185.65,185.64,47.05797862]
[1755296172332,0.68000001,185.65,185.64,9.21797862]
[1755296172612,0.68000001,185.65,185.64,47.05797862]
[1755296174218,1e-08,185.65,185.64,47.05797862]
[1755296174382,1e-08,185.65,185.64,43.22677009]
[1755296174705,1e-08,185.65,185.64,47.05797862]
[1755296175503,1e-08,185.65,185.64,43.22677009]
[1755296175708,1e-08,185.65,185.64,47.05797862]
[1755296176083,1e-08,185.65,185.64,62.58419419]
[1755296176606,1e-08,185.65,185.64,63.12287119]
[1755296176805,1e-08,185.65,185.64,62.70287119]
[1755296177412,1e-08,185.65,185.64,64.86135819]
[1755296178718,1e-08,185.65,185.64,49.21646562]
[1755296178904,0.69000001,185.65,185.64,47.05797862]
[1755296180905,0.69000001,185.65,185.64,43.22677009]
[1755296181094,0.69000001,185.65,185.64,47.05797862]
[1755296181700,0.69000001,185.65,185.64,43.22677009]
[1755296182311,0.69000001,185.65,185.64,37.84]
[1755296183303,0.69000001,185.65,185.64,43.22677009]
[1755296183803,0.69000001,185.65,185.64,37.84]
[1755296184209,0.69000001,185.65,185.64,43.22677009]
[1755296186623,1e-08,185.65,185.64,47.05797862]
[1755296187198,0.69000001,185.65,185.64,37.84]
[1755296187425,4.52120854,185.65,185.64,37.84]
[1755296187723,4.52120854,185.65,185.62,79.2]
[1755296187926,3.83120853,185.63,185.62,37.84]
[1755296188105,4.52120853,185.63,185.62,37.84]
[1755296190125,8.13305868,185.63,185.62,37.84]
[1755296190296,4.52120853,185.63,185.62,37.84]
[1755296190498,8.13305868,185.63,185.62,37.84]
[1755296190697,4.52120853,185.63,185.62,37.84]
[1755296190915,8.13305868,185.63,185.62,37.84]
[1755296191097,4.52120853,185.63,185.62,37.84]
[1755296191295,8.13305868,185.63,185.6,0.03]
[1755296191614,3.83120853,185.61,185.6,0.03]
[1755296191821,7.44305868,185.61,185.6,0.03]
[1755296192023,8.13305868,185.61,185.6,0.03]
[1755296195907,13.52069943,185.61,185.6,0.03]
[1755296196311,18.03551212,185.61,185.6,0.03]
[1755296196626,26.0,185.59,185.58,0.03]
[1755296196802,33.44305868,185.59,185.58,0.03]
[1755296197011,34.13305868,185.59,185.58,0.03]
[1755296198338,39.52128002,185.59,185.58,0.03]
[1755296198836,44.04105133,185.59,185.58,0.03]
[1755296199438,40.2098428,185.59,185.58,0.03]
[1755296199637,44.04105133,185.59,185.58,0.03]
[1755296200135,39.52128002,185.59,185.58,0.03]
[1755296201037,59.1472669,185.59,185.58,0.03]
[1755296203642,54.62749559,185.59,185.58,0.03]
[1755296210344,92.46749559,185.59,185.58,0.03]
[1755296212324,96.29870412,185.59,185.58,0.03]
[1755296212528,100.81847543,185.59,185.58,0.03]
[1755296213256,96.9872669,185.59,185.58,0.03]
[1755296213752,92.46749559,185.59,185.58,0.03]
[1755296214837,96.9872669,185.59,185.58,0.03]
[1755296215419,3.61185015,185.59,185.58,0.03]
[1755296215654,33.44305868,185.59,185.58,0.03]
[1755296217528,3.61185015,185.59,185.58,0.03]
[1755296218068,29.61185015,185.59,185.58,0.03]
[1755296219263,3.61185015,185.59,185.58,0.03]
[1755296219447,3.61185015,185.61,185.58,4.28120853]
[1755296219745,0.06,185.64,185.6,3.83120853]
[1755296219746,26.0,185.62,185.6,3.83120853]
[1755296219934,0.06,185.64,185.6,4.25120853]
[1755296220133,26.0,185.62,185.6,4.25120853]
[1755296220346,0.06,185.64,185.61,4.25120853]
[1755296220523,3.66332373,185.64,185.63,3.83120853]
[1755296220723,3.66332373,185.64,185.63,4.25120853]
[1755296220923,3.66332373,185.64,185.63,5.80706028]
[1755296221459,3.66332373,185.64,185.63,5.38706028]
[1755296222257,3.66332373,185.64,185.63,9.63826881]
[1755296223335,3.66332373,185.64,185.63,9.21826881]
[1755296224267,1e-08,185.66,185.65,26.0]
[1755296224556,0.2,185.78,185.73,15.10621557]
[1755296224877,0.2,185.78,185.72,41.10621557]
[1755296224878,0.2,185.83,185.78,41.10621557]
[1755296225057,0.2,185.83,185.79,0.06]
[1755296225355,0.2,185.83,185.8,3.83120853]
[1755296225852,3.83120853,185.82,185.79,2.156974]
[1755296226020,4.55120853,185.81,185.79,2.156974]
[1755296226346,4.55120853,185.82,185.78,5.3826134]
[1755296226656,0.2,185.83,185.79,6.08913779]
[1755296226826,0.2,185.83,185.79,6.02913779]
[1755296227378,6.74913779,185.82,185.78,5.3826134]
[1755296227525,6.02913779,185.81,185.78,5.3826134]
[1755296227834,6.74913779,185.81,185.78,5.3826134]
[1755296228244,6.02913779,185.8,185.76,5.38329026]
[1755296228863,6.74913779,185.8,185.76,5.38329026]
[1755296229538,26.0,185.81,185.76,11.41242805]
[1755296229762,70.98913779,185.83,185.78,6.02913779]
[1755296230457,32.94913779,185.83,185.78,6.02913779]
[1755296230849,0.2,185.83,185.81,6.02913779]
[1755296231156,0.2,185.83,185.82,6.08913779]
[1755296231562,0.2,185.83,185.82,8.24587879]
[1755296231764,0.2,185.83,185.82,6.08913779]
[1755296232157,0.2,185.83,185.82,8.24587879]
[1755296232467,0.2,185.83,185.82,13.62743082]
[1755296233567,0.2,185.83,185.82,11.41068982]
[1755296234468,0.2,185.83,185.82,11.47068982]
[1755296235263,0.2,185.83,185.82,11.41068982]
[1755296236853,1e-08,185.83,185.82,11.47068982]
[1755296237161,1e-08,185.84,185.83,15.10621557]
[1755296237339,1e-08,185.84,185.83,21.19535336]
[1755296237543,1e-08,185.84,185.83,100.39535336]
[1755296237980,1e-08,185.84,185.83,105.7766158]
[1755296238151,1e-08,185.84,185.83,145.9530078]
[1755296240263,0.06,185.86,185.83,145.9530078]
[1755296240461,0.06,185.86,185.85,6.02913779]
[1755296240666,1e-08,185.86,185.85,21.13535336]
[1755296240976,1e-08,185.86,185.85,6.02913779]
[1755296241281,1e-08,185.86,185.85,11.40982113]
[1755296241574,1e-08,185.86,185.85,13.56598113]
[1755296244095,1e-08,185.86,185.85,107.9321967]
[1755296244453,1e-08,185.86,185.85,133.9321967]
[1755296245054,1e-08,185.89,185.88,21.13535336]
[1755296245255,0.67,185.95,185.89,15.10621557]
[1755296245464,0.67,185.95,185.93,6.02913779]
[1755296245958,26.0,185.96,185.94,5.37807895]
[1755296246566,0.67,185.96,185.94,5.37807895]
[1755296246773,0.67,185.95,185.94,5.37807895]
[1755296249059,0.67,185.95,185.92,38.0]
[1755296250378,0.67,185.94,185.92,38.0]
[1755296250682,0.67,185.93,185.92,38.0]
[1755296250862,0.67,185.93,185.92,43.37859538]
[1755296251980,0.67,185.95,185.92,43.37859538]
[1755296252285,0.67,185.95,185.92,49.40773317]
[1755296252477,0.67,185.94,185.92,43.37859538]
[1755296252978,3.54021291,185.98,185.92,43.37859538]
[1755296253170,0.67,185.94,185.92,43.37859538]
[1755296253484,0.67,185.96,185.93,3.82153856]
[1755296253987,0.67,185.96,185.94,5.37807895]
[1755296254187,0.67,185.96,185.93,5.37828691]
[1755296254188,0.67,185.95,185.93,5.37828691]
[1755296254502,3.82153856,185.94,185.91,5.37886758]
[1755296254687,4.49153856,185.93,185.9,37.96]
[1755296254865,0.67,185.92,185.9,37.96]
[1755296255664,0.67,185.92,185.9,43.33922419]
[1755296256386,0.67,185.92,185.9,43.36922419]
[1755296257874,0.67,185.92,185.9,47.19076275]
[1755296258087,0.06,185.93,185.91,3.82153856]
[1755296258799,0.06,185.93,185.9,47.19076275]
[1755296259279,0.06,185.93,185.91,3.82153856]
[1755296260174,0.06,185.93,185.92,5.37865748]
[1755296261189,4.29364723,185.93,185.92,5.37865748]
[1755296261366,0.73,185.93,185.92,5.37865748]
[1755296261870,0.73,185.93,185.91,5.3789468]
[1755296262210,4.23807678,185.92,185.9,43.36920647]
[1755296262500,4.23807678,185.91,185.9,0.03]
[1755296262695,8.05961534,185.91,185.9,0.03]
[1755296264099,4.23807678,185.91,185.9,0.03]
[1755296266396,8.75784809,185.91,185.9,0.03]
[1755296266600,8.05961534,185.91,185.88,43.34976853]
[1755296266898,8.71875034,185.9,185.88,43.34976853]
[1755296267095,4.23807678,185.89,185.88,43.34976853]
[1755296267298,8.05961534,185.89,185.88,37.97]
[1755296267469,4.23807678,185.89,185.88,0.03]
[1755296268288,8.71875034,185.89,185.88,0.03]
[1755296268878,8.04875034,185.89,185.88,0.03]
[1755296269488,3.56807678,185.89,185.87,5.38008842]
[1755296269692,8.07195568,185.88,185.87,5.38008842]
[1755296270278,8.07195568,185.88,185.87,9.20162698]
[1755296271174,8.07195568,185.88,185.87,5.38008842]
[1755296271380,8.74195568,185.88,185.86,43.33038812]
[1755296271581,8.74195568,185.87,185.86,43.33038812]
[1755296272090,8.74195568,185.87,185.86,37.95]
[1755296273176,8.07195568,185.87,185.86,43.33039384]
[1755296273376,3.56807678,185.87,185.86,47.1519324]
[1755296273596,4.5038789,185.88,185.86,47.1519324]
[1755296273597,4.5038789,185.92,185.87,15.10621557]
[1755296273887,4.5638789,185.93,185.91,3.82153856]
[1755296274091,4.5638789,185.93,185.92,41.76153856]
[1755296274281,0.06,185.93,185.92,41.76153856]
[1755296274793,0.06,185.93,185.92,47.20019604]
[1755296276069,0.06,185.93,185.92,47.14019604]
[1755296276793,0.06,185.93,185.92,62.30641161]
[1755296277097,0.06,185.95,185.94,3.82153856]
[1755296277272,0.06,185.95,185.94,41.78153856]
[1755296279192,0.06,185.95,185.94,47.15961751]
[1755296279699,0.73,185.95,185.94,47.15961751]
[1755296279901,0.73,185.95,185.94,37.96]
[1755296280685,4.55153856,185.95,185.94,37.96]
[1755296280880,0.73,185.95,185.94,37.96]
[1755296281184,4.55153856,185.95,185.94,37.96]
[1755296281783,0.73,185.95,185.94,37.96]
[1755296284600,0.06,185.95,185.94,47.15961751]
[1755296285385,0.06,185.95,185.94,47.21961751]
[1755296286283,0.06,185.95,185.94,47.15961751]
[1755296286705,0.06,185.95,185.94,62.32583308]
[1755296287797,0.06,185.95,185.94,62.26583308]
[1755296292103,0.73,185.95,185.94,5.37807895]
[1755296292304,0.73,185.95,185.94,37.9]
[1755296292887,4.55153856,185.95,185.89,3.85153856]
[1755296293108,0.06,185.95,185.9,37.92]
[1755296293280,0.67,185.94,185.9,47.12071957]
[1755296293481,0.06,185.95,185.9,47.12071957]
[1755296293712,0.67,185.93,185.9,47.12071957]
[1755296294095,0.67,185.93,185.9,43.29918101]
[1755296294297,0.67,185.92,185.9,47.12071957]
[1755296294499,0.67,185.91,185.9,43.29918101]
[1755296298517,0.67,185.91,185.9,37.92]
[1755296298709,4.49153856,185.91,185.9,37.92]
[1755296299109,4.51153856,185.91,185.89,0.03]
[1755296299311,0.69,185.9,185.89,37.93]
[1755296299526,4.30550135,185.9,185.89,0.03]
[1755296299693,4.51153856,185.9,185.89,0.03]
[1755296300315,8.12703991,185.9,185.89,0.03]
[1755296300515,4.51153856,185.9,185.89,0.03]
[1755296300717,8.12703991,185.9,185.89,0.03]
[1755296302686,13.50627605,185.9,185.89,0.03]
[1755296306307,17.32781461,185.9,185.89,0.03]
[1755296307035,26.0,185.88,185.87,0.03]
[1755296307209,15.10621557,185.87,185.85,0.03]
[1755296307447,41.10621557,185.84,185.74,5.3946417]
[1755296307612,33.43703991,185.84,185.75,3.82153856]
[1755296307820,38.38134072,185.84,185.75,5.3833103]
[1755296308414,43.76231359,185.84,185.75,5.3833103]
[1755296309433,39.50801278,185.84,185.75,5.3833103]
[1755296312244,26.0,185.8,185.71,27.42]
[1755296312459,7.64307712,185.79,185.72,5.38423278]
[1755296312944,8.33307712,185.79,185.72,5.38423278]
[1755296313341,4.51153856,185.79,185.72,5.38423278]
[1755296313520,29.82153856,185.79,185.74,4.00153856]
[1755296314340,29.82153856,185.79,185.74,0.18]
[1755296314520,29.82153856,185.79,185.75,5.38358008]
[1755296315123,30.51153856,185.79,185.75,5.38358008]
[1755296316434,30.51153856,185.79,185.73,5.3841598]
[1755296319750,0.69,185.82,185.75,3.82153856]
[1755296319955,3.82153856,185.81,185.76,0.18]
[1755296320261,3.82153856,185.8,185.76,0.18]
[1755296320942,3.82153856,185.8,185.77,5.38300048]
[1755296323067,3.82153856,185.82,185.78,0.21]
[1755296323271,3.82153856,185.84,185.79,4.00153856]
[1755296323463,3.82153856,185.84,185.8,0.18]
[1755296323661,29.82153856,185.85,185.81,0.18]
[1755296323864,3.82153856,185.85,185.81,0.18]
[1755296324465,3.82153856,185.85,185.82,5.38155203]
[1755296324659,3.88153856,185.84,185.82,5.38155203]
[1755296325370,3.88153856,185.84,185.8,18.83742898]
[1755296325558,3.88153856,185.84,185.8,19.01742898]
[1755296326950,3.82153856,185.82,185.8,5.38213132]
[1755296327150,3.82153856,185.81,185.8,5.38213132]
[1755296327361,3.82153856,185.81,185.78,5.41271073]
[1755296327555,3.82153856,185.8,185.78,5.41271073]
[1755296327766,3.82153856,185.79,185.78,0.03]
[1755296327965,3.82153856,185.8,185.78,0.03]
[1755296328751,3.82153856,185.82,185.78,0.21]
[1755296328955,0.06,185.84,185.81,3.82153856]
[1755296329159,0.06,185.84,185.8,3.82153856]
[1755296329652,3.82153856,185.81,185.79,5.38235292]
[1755296330176,0.73,185.84,185.79,5.56235292]
[1755296330378,3.82153856,185.83,185.79,5.38235292]
[1755296330570,4.49153856,185.82,185.79,5.38235292]
[1755296330773,0.06,185.84,185.81,3.82153856]
[1755296330971,0.06,185.84,185.83,3.82153856]
[1755296331670,0.06,185.84,185.83,9.202801]
[1755296331861,0.06,185.84,185.83,9.382801]
[1755296333365,0.06,185.84,185.83,24.48901657]
[1755296336859,0.06,185.84,185.83,24.30901657]
[1755296337521,0.06,185.84,185.83,24.48901657]
[1755296337782,0.06,185.84,185.83,25.02714281]
[1755296337958,0.06,185.84,185.83,24.48901657]
[1755296340474,1e-08,185.86,185.85,18.92775413]
[1755296340784,0.67000001,185.86,185.85,117.12]
[1755296341589,1e-08,185.86,185.85,117.12]
[1755296341896,0.67000001,185.86,185.85,37.92]
[1755296342510,0.67000001,185.86,185.85,43.30068334]
[1755296342680,0.67000001,185.86,185.85,37.92]
[1755296344091,0.67000001,185.86,185.85,43.30068334]
[1755296344683,1e-08,185.86,185.85,43.30068334]
[1755296344900,1e-08,185.86,185.85,47.1222219]
[1755296345399,1e-08,185.86,185.85,43.30068334]
[1755296345890,0.67000001,185.86,185.85,43.30068334]
[1755296347394,1e-08,185.86,185.85,43.30068334]
[1755296347793,0.67000001,185.86,185.85,43.30068334]
[1755296353906,4.49153857,185.86,185.85,37.92]
[1755296354094,4.49153857,185.86,185.85,37.9]
[1755296354906,4.49153857,185.86,185.84,37.9]
[1755296355101,3.82153856,185.85,185.84,37.9]
[1755296355494,4.54153856,185.85,185.84,37.9]
[1755296355901,4.54153856,185.85,185.81,5.41182185]
[1755296356102,3.82153856,185.83,185.82,37.9]
[1755296356613,4.54153856,185.83,185.82,37.9]
[1755296359209,4.54153856,185.83,185.82,37.93]
[1755296364606,8.15743604,185.83,185.82,37.93]
[1755296364801,4.54153856,185.83,185.82,37.93]
[1755296365312,8.15743604,185.83,185.82,37.93]
[1755296365698,4.33589748,185.83,185.82,37.93]
[1755296365900,8.15743604,185.83,185.82,37.93]
[1755296366398,4.54153856,185.83,185.82,37.93]
[1755296366603,8.15743604,185.83,185.82,37.93]
[1755296367213,1e-08,185.86,185.82,47.13309059]
[1755296367418,1e-08,185.86,185.84,3.82153856]
[1755296367604,1e-08,185.86,185.85,37.86]
[1755296368022,1e-08,185.86,185.85,43.24068334]
[1755296368604,4.3396539,185.86,185.85,43.24068334]
[1755296368810,0.72000001,185.86,185.85,43.24068334]
[1755296369308,4.33996682,185.86,185.85,43.24068334]
[1755296369511,8.16150538,185.86,185.85,37.86]
[1755296369818,8.16150538,185.86,185.85,37.84]
[1755296375729,8.16150538,185.86,185.85,37.87]
[1755296376424,3.61996682,185.86,185.85,43.25068334]
[1755296377214,3.61996682,185.86,185.85,43.43068334]
[1755296377408,3.61996682,185.86,185.85,43.25068334]
[1755296377618,1e-08,185.86,185.85,43.25068334]
[1755296379434,1e-08,185.86,185.85,43.43068334]
[1755296379813,1e-08,185.86,185.85,47.2522219]
[1755296380935,1e-08,185.86,185.85,43.43068334]
[1755296381534,1e-08,185.86,185.85,43.25068334]
[1755296382412,1e-08,185.86,185.85,47.0722219]
[1755296382915,1e-08,185.86,185.85,49.2286139]
[1755296383529,1e-08,185.86,185.85,45.40707534]
[1755296390830,1e-08,185.86,185.85,49.2286139]
[1755296391235,1e-08,185.86,185.85,49.4086139]
[1755296391644,1e-08,185.86,185.85,45.40707534]
[1755296392025,1e-08,185.86,185.85,49.2286139]
[1755296395459,1e-08,185.86,185.85,7.56707534]
[1755296395747,1e-08,185.86,185.85,43.25068334]
[1755296395748,0.66000001,185.86,185.85,43.25068334]
[1755296396117,4.48153857,185.86,185.85,37.87]
[1755296396318,8.10183579,185.86,185.85,37.87]
[1755296400250,4.28029723,185.86,185.85,37.87]
[1755296400430,1e-08,185.86,185.85,47.0722219]
[1755296402165,1e-08,185.86,185.85,47.2522219]
[1755296403431,1e-08,185.86,185.85,49.4086139]
[1755296404843,1e-08,185.86,185.85,49.2286139]
[1755296412682,1e-08,185.88,185.86,15.10621557]
[1755296412836,1e-08,185.88,185.87,57.28576456]
[1755296413041,1e-08,185.88,185.87,57.46576456]
[1755296413254,1e-08,185.9,185.88,15.10621557]
[1755296413454,1e-08,185.9,185.89,56.74775413]
[1755296414046,1e-08,185.9,185.89,58.90344913]
[1755296414369,1e-08,185.9,185.89,43.79723356]
[1755296414677,4.28045508,185.9,185.89,45.35522052]
[1755296415174,8.10199364,185.9,185.89,37.82]
[1755296416075,4.28045508,185.9,185.89,37.82]
[1755296418242,4.28045508,185.9,185.85,13.81731356]
[1755296418243,8.10199364,185.9,185.85,5.41060215]
[1755296418448,8.12199363,185.89,185.86,37.82]
[1755296418749,8.12199363,185.88,185.85,0.03]
[1755296418968,4.30045507,185.87,185.86,37.82]
[1755296419374,8.12199363,185.87,185.86,37.82]
[1755296419874,4.30045507,185.87,185.86,37.82]
[1755296426179,8.12199363,185.87,185.86,37.82]
[1755296427082,13.50216515,185.87,185.85,0.03]
[1755296427378,8.12199363,185.86,185.85,0.03]
[1755296428087,12.64936672,185.86,185.85,0.03]
[1755296428575,8.12199363,185.86,185.85,0.03]
[1755296429085,12.64936672,185.86,185.85,0.03]
[1755296429262,3.62045507,185.86,185.85,41.67153856]
[1755296429462,4.30045507,185.86,185.85,37.85]
[1755296430758,3.62045507,185.86,185.85,47.0522219]
[1755296430953,0.68,185.89,185.85,47.0522219]
[1755296431154,3.6219678,185.88,185.87,3.82153856]
[1755296431366,3.6219678,185.88,185.87,41.82153856]
[1755296431561,1e-08,185.9,185.87,41.82153856]
[1755296431765,1e-08,185.9,185.89,3.82153856]
[1755296431966,3.62147778,185.9,185.89,41.64153856]
[1755296432184,3.62147778,185.9,185.89,41.82153856]
[1755296432490,3.62147778,185.9,185.89,47.20106408]
[1755296433307,1e-08,185.9,185.89,62.30727965]
[1755296435687,1e-08,185.92,185.9,15.10621557]
[1755296435907,1e-08,185.94,185.92,15.10621557]
[1755296436078,1e-08,185.94,185.93,56.74775413]
[1755296436780,1e-08,185.94,185.93,56.92775413]
[1755296436988,1e-08,185.94,185.93,62.30612233]
[1755296437992,1e-08,185.94,185.93,62.12612233]
[1755296438414,1e-08,185.94,185.93,141.32612233]
[1755296438579,1e-08,185.94,185.93,126.21990676]
[1755296439089,1e-08,185.94,185.93,88.39990676]
[1755296439290,1e-08,185.94,185.93,126.21990676]
[1755296441596,1e-08,185.94,185.93,47.01990676]
[1755296450884,0.71000001,185.94,185.93,47.01990676]
[1755296451707,1e-08,185.94,185.93,47.01990676]
[1755296458385,0.71000001,185.94,185.93,47.01990676]
[1755296459493,0.71000001,185.94,185.93,47.04990676]
[1755296460508,1e-08,185.94,185.93,47.04990676]
[1755296463211,1e-08,185.94,185.93,62.15612233]
[1755296463410,0.06,185.97,185.93,75.78204283]
[1755296463714,0.06,185.97,185.96,18.92775413]
[1755296463888,0.06,185.97,185.96,56.72775413]
[1755296464889,0.77,185.97,185.96,37.8]
[1755296465088,0.77,185.97,185.96,41.62153856]
[1755296465289,0.77,185.97,185.96,46.99903909]
[1755296465699,0.77,185.97,185.96,43.17750053]
[1755296467625,0.77,185.97,185.96,46.99903909]
[1755296467814,0.77,185.97,185.94,5.37781585]
[1755296468024,4.37645874,185.97,185.94,5.37781585]
[1755296468224,0.06,185.97,185.95,37.78]
[1755296468404,0.71,185.96,185.95,37.78]
[1755296471397,4.32117455,185.96,185.95,37.78]
[1755296475008,4.32117455,185.96,185.95,43.15778972]
[1755296476039,4.32117455,185.96,185.95,46.97932828]
[1755296476214,3.61117455,185.96,185.95,46.97932828]
[1755296477112,4.31117455,185.96,185.95,43.15778972]
[1755296477310,4.37117455,185.96,185.95,43.15778972]
[1755296477526,4.37117455,185.96,185.95,46.97932828]
[1755296478133,4.37117455,185.96,185.95,43.15778972]
[1755296480030,3.67117455,185.96,185.95,43.15778972]
[1755296480532,3.67117455,185.96,185.95,45.60263684]
[1755296481740,3.67117455,185.96,185.95,45.78263684]
[1755296482242,1e-08,185.97,185.96,15.10621557]
[1755296482448,1e-08,185.97,185.96,17.55106269]
[1755296482655,1e-08,185.97,185.96,98.12354318]
[1755296483519,0.06,186.0,185.96,117.12479505]
[1755296483724,0.06,186.0,185.99,3.81732761]
[1755296483933,0.06,186.0,185.99,41.59732761]
[1755296485426,0.06,186.0,185.99,46.97396076]
[1755296485628,0.06,186.0,185.99,62.08017633]
[1755296485829,0.06,186.02,186.0,15.10621557]
[1755296486038,0.06,186.02,186.01,56.70354318]
[1755296486213,1e-08,186.02,186.01,136.08354318]
[1755296486417,1e-08,186.02,186.01,139.90087079]
[1755296487132,1e-08,186.02,186.01,165.90087079]
[1755296487853,1e-08,186.02,186.01,171.27692584]
[1755296488944,1e-08,186.02,186.01,176.61694195]
[1755296491614,1e-08,186.02,186.01,168.80228673]
[1755296491814,1e-08,186.02,186.01,172.61961434]
[1755296493227,1e-08,186.02,186.01,167.27959823]
[1755296494345,1e-08,186.02,186.01,171.27692584]
[1755296495625,1e-08,186.02,186.01,171.30692584]
[1755296496241,1e-08,186.02,186.01,173.46087984]
[1755296497247,1e-08,186.02,186.01,178.71483607]
[1755296498045,1e-08,186.02,186.01,178.53483607]
[1755296501649,1e-08,186.02,186.01,174.71750846]
[1755296501948,0.70000001,186.02,186.01,148.69750846]
[1755296502456,0.70000001,186.02,186.01,146.54355446]
[1755296502843,0.70000001,186.02,186.01,52.23733889]
[1755296503451,0.70000001,186.02,186.01,43.16605505]
[1755296503632,0.70000001,186.02,186.01,46.98338266]
[1755296504439,0.70000001,186.02,186.01,62.08959823]
[1755296504643,1e-08,186.02,186.01,62.08959823]
[1755296504953,1e-08,186.02,186.01,69.75496037]
[1755296505849,1e-08,186.02,186.01,73.57228798]
[1755296507150,1e-08,186.02,186.01,69.75496037]
[1755296507449,1e-08,186.02,186.01,73.57228798]